fUSD/lending_fUSD_20240925
["ID","MTS","AMOUNT","RATE_DAILY","PERIOD"]
[339085587,1727226637739,-324915.94886856,0.000129,2]
[339085588,1727226637748,-858176.31053864,0.000129,2]
[339085589,1727226637760,-787880.52438604,0.000129,2]
[339085590,1727226637772,-783.45476951,0.000129,2]
[339085591,1727226637785,-851.88368412,0.000129,2]
[339085592,1727226637799,-4156.4123412,0.000129,2]
[339085593,1727226637811,-782.42871167,0.000129,2]
[339085594,1727226637822,-1508.20205936,0.000129,2]
[339085595,1727226637835,-1031.66794064,0.000129,2]
[339085596,1727226637846,-6035.8958172,0.000129,2]
[339085597,1727226637858,-18639.8583427,0.000129,2]
[339085598,1727226637870,-900.0,0.000129,2]
[339085599,1727226637881,-433.70524332,0.000129,2]
[339085600,1727226637892,-758.11221771,0.000129,2]
[339085601,1727226637903,-1203.88782761,0.000129,2]
[339085602,1727226637914,-11670.03628062,0.000129,2]
[339085603,1727226637926,-1710.00000005,0.000129,2]
[339085604,1727226637941,-7654.46792279,0.000129,2]
[339085605,1727226637953,-617.9386914,0.000129,2]
[339085606,1727226637965,-117110.33654787,0.000129,2]
[339085607,1727226637976,-3547.12983784,0.000129,2]
[339085608,1727226637987,-1321.33839,0.000129,2]
[339085610,1727226638004,-8761.63231516,0.000129,2]
[339085636,1727226639290,-1214.79818361,0.000129,2]
[339085637,1727226639424,-1073.59111442,0.000129,2]
[339085638,1727226639436,-3419.99457149,0.000129,2]
[339085639,1727226639448,-464.53006977,0.000129,2]
[339085640,1727226639463,-123503.86474464,0.000129,2]
[339085641,1727226639501,-901.26173743,0.000129,2]
[339085642,1727226639514,-4715.98128221,0.000129,2]
[339085643,1727226639525,-1759.8369796,0.000129,2]
[339085644,1727226639596,-851.15923326,0.000129,2]
[339085645,1727226639607,-706.86050022,0.000129,2]
[339085646,1727226639618,-334265.85193283,0.000129,2]
[339085701,1727226642502,-1921.65535613,0.000129,2]
[339085704,1727226642848,-1056.06830296,0.000129,2]
[339085712,1727226645395,-308.98765548,0.000128,2]
[339085714,1727226645404,-280.90272352,0.000128,2]
[339085715,1727226645415,-350.98025528,0.000129,2]
[339085716,1727226645595,-659.475,0.000129,2]
[339085717,1727226645608,-47267.43512627,0.000129,2]
[339085718,1727226645799,-25730.99999983,0.000129,2]
[339085719,1727226645811,-13190.00000041,0.000129,2]
[339085720,1727226658097,150.0,0.00021,60]
[339085721,1727226769609,314.81,0.00010051,2]
[339085722,1727226808687,155.8,0.00010959,2]
[339085723,1727226929908,3798.0600769,0.000129,120]
[339085724,1727227316036,313.74,9.991e-05,2]
[339087343,1727227535461,2001.99,0.00021,60]
[339087344,1727227555302,442.6668699,6.94e-05,2]
[339087345,1727227611433,220.29,0.00010959,2]
[339087353,1727227666857,510.0,0.00021917,120]
[339087354,1727227679177,749.49,0.00010959,2]
[339087367,1727227805881,150.0,0.00010959,2]
[339087371,1727227806070,150.0,0.00010959,2]
[339087372,1727227806255,150.0,0.00010959,2]
[339087373,1727227806509,150.0,0.00010959,2]
[339087374,1727227806705,150.0,0.00010959,2]
[339087375,1727227806909,150.0,0.00010959,2]
[339087376,1727227807107,150.0,0.00010959,2]
[339087377,1727227807366,201.586603,0.00010959,2]
[339087389,1727227831662,-267.71,0.00011866,2]
[339087390,1727227831674,-250.0,0.00011866,2]
[339087391,1727227831686,-250.0,0.00011866,2]
[339087392,1727227831698,-355.93,0.00011898,2]
[339087393,1727227831710,-317.02,0.00011901,2]
[339087394,1727227831721,-69.49651431,0.00011927,2]
[339087395,1727227831734,-108.19348569,0.00011927,2]
[339087396,1727227831744,-349.0982151,0.00011944,2]
[339087398,1727227831949,-438.97982347,0.00011944,2]
[339087400,1727227831962,-211.92196143,0.00011944,2]
[339087401,1727227831972,-258.92,0.00011952,2]
[339087402,1727227831982,-0.23303857,0.00012,2]
[339087403,1727227831999,-344.40721085,0.00012,2]
[339087415,1727227837891,-155.35975058,0.00012,2]
[339087416,1727227837901,-500.0,0.00012,2]
[339087417,1727227837912,-500.0,0.00012,2]
[339087418,1727227837922,-500.0,0.00012,2]
[339087419,1727227837932,-500.0,0.00012,2]
[339087420,1727227837944,-500.0,0.00012,2]
[339087421,1727227837954,-522.37,0.00012,2]
[339087422,1727227837964,-553.2,0.00012,2]
[339087423,1727227837975,-500.0,0.00012,2]
[339087424,1727227837985,-919.42662819,0.00012,3]
[339087425,1727227837995,-150.01,0.000121,2]
[339087426,1727227838005,-150.29,0.000121,2]
[339087427,1727227838015,-150.47,0.000121,2]
[339087428,1727227838025,-313.74,0.00012255,2]
[339087429,1727227838035,-5067.4,0.00012255,2]
[339087430,1727227838047,-150.0,0.00012741,2]
[339087431,1727227838058,-150.0,0.0001275,2]
[339087432,1727227838069,-150.0,0.00012773,2]
[339087433,1727227838079,-1038.31770623,0.00012799,2]
[339087434,1727227838091,-1717.32749377,0.00012799,2]
[339087435,1727227838102,-2788.2955,0.000128,2]
[339087436,1727227838112,-175.54336979,0.000128,2]
[339087437,1727227838122,-175.54336979,0.000128,2]
[339087438,1727227838133,-175.54336979,0.000128,2]
[339087439,1727227838143,-175.54336979,0.000128,2]
[339087440,1727227838154,-176.04,0.000128,2]
[339087441,1727227838165,-326.35724956,0.000128,2]
[339087442,1727227838176,-326.35724956,0.000128,2]
[339087443,1727227838186,-326.35724956,0.000128,2]
[339087444,1727227838198,-326.35724956,0.000128,2]
[339087445,1727227838208,-326.35724956,0.000128,2]
[339087446,1727227838219,-326.35724956,0.000128,2]
[339087447,1727227838229,-326.35724956,0.000128,2]
[339087448,1727227838239,-326.35724956,0.000128,2]
[339087449,1727227838249,-326.35724956,0.000128,2]
[339087450,1727227838259,-326.35724956,0.000128,2]
[339087451,1727227838270,-326.35724956,0.000128,2]
[339087452,1727227838282,-326.35724956,0.000128,2]
[339087454,1727227838293,-326.35724956,0.000128,2]
[339087456,1727227838303,-326.35724956,0.000128,2]
[339087457,1727227838313,-326.35724956,0.000128,2]
[339087458,1727227838324,-326.35724956,0.000128,2]
[339087459,1727227838335,-326.35724956,0.000128,2]
[339087460,1727227838345,-326.35724956,0.000128,2]
[339087461,1727227838356,-326.35724956,0.000128,2]
[339087462,1727227838367,-326.85,0.000128,2]
[339087463,1727227838377,-313.49227555,0.000128,2]
[339087464,1727227838388,-313.49227555,0.000128,2]
[339087465,1727227838398,-313.49227555,0.000128,2]
[339087466,1727227838408,-313.49227555,0.000128,2]
[339087467,1727227838419,-313.49227555,0.000128,2]
[339087469,1727227838429,-313.49227555,0.000128,2]
[339087471,1727227838440,-313.49227555,0.000128,2]
[339087472,1727227838450,-313.49227555,0.000128,2]
[339087473,1727227838460,-36.24819103,0.000128,2]
[339087474,1727227838473,-277.24408452,0.000128,2]
[339087475,1727227838484,-313.49227555,0.000128,2]
[339087476,1727227838494,-291.86363993,0.000128,2]
[339087477,1727227838507,-21.62863562,0.000128,2]
[339087478,1727227838517,-313.49227555,0.000128,2]
[339087479,1727227838527,-313.49227555,0.000128,2]
[339087480,1727227838537,-147.83472531,0.000128,2]
[339087484,1727227838550,-165.65755024,0.000128,2]
[339087486,1727227838561,-313.49227555,0.000128,2]
[339087488,1727227838571,-313.49227555,0.000128,2]
[339087490,1727227838581,-313.49227555,0.000128,2]
[339087492,1727227838591,-313.49227555,0.000128,2]
[339087494,1727227838601,-313.49227555,0.000128,2]
[339087496,1727227838611,-313.99,0.000128,2]
[339087498,1727227838621,-12299.56061373,0.0001289,2]
[339087500,1727227838634,-22537.18002361,0.0001289,2]
[339087503,1727227838646,-515.37635187,0.0001289,2]
[339087505,1727227838659,-2244.55942848,0.0001289,2]
[339087507,1727227838671,-8643.50000241,0.0001289,2]
[339087510,1727227838683,-1573.34924319,0.0001289,2]
[339087512,1727227838698,-914.81898883,0.0001289,2]
[339087514,1727227838710,-1005.99863745,0.0001289,2]
[339087516,1727227838722,-1015.66417873,0.0001289,2]
[339087519,1727227838734,-3647.31362921,0.0001289,2]
[339087521,1727227838746,-3060.15071266,0.0001289,2]
[339087523,1727227838759,-47455.26653665,0.0001289,2]
[339087525,1727227838770,-150.0,0.00012891,2]
[339087527,1727227838779,-180.18843439,0.00012898,2]
[339087529,1727227838790,-1109.99,0.00012899,2]
[339087531,1727227838800,-359.459,0.00012899,2]
[339087534,1727227838810,-2000.0,0.00012899,2]
[339087536,1727227838820,-5363.87953957,0.000129,2]
[339087538,1727227838831,-1079.34910173,0.000129,2]
[339087541,1727227838860,414.0,0.00011105,2]
[339087542,1727227838873,-434.68827893,0.000129,2]
[339087543,1727227839209,-450.95372915,0.000129,2]
[339087544,1727227839220,-5200.0,0.000129,2]
[339087545,1727227839232,-618.75914436,0.000129,2]
[339087548,1727227839654,-652.92524189,0.000129,2]
[339087549,1727227839766,-1661.96238067,0.000129,2]
[339087550,1727227839777,-1262.25643233,0.000129,2]
[339087551,1727227839788,-84827.94702213,0.000129,2]
[339087552,1727227839799,-38671.39032521,0.000129,2]
[339087553,1727227839883,-1837.89071829,0.000129,2]
[339087554,1727227839895,-5184.20181618,0.000129,2]
[339087632,1727227842821,-159.07548881,0.00012898,2]
[339087633,1727227842831,-849.3347378,0.000129,2]
[339087634,1727227842843,-28076.51788883,0.000129,2]
[339087635,1727227842854,-2616.91303773,0.000129,2]
[339087637,1727227845868,-348.70289584,0.00012898,2]
[339087638,1727227845879,-24796.41647645,0.000129,2]
[339087639,1727227845888,-24738.08062769,0.000129,2]
[339087640,1727227845900,-311.36819876,0.000129,2]
[339087641,1727227845911,-5295.7,0.000129,2]
[339087642,1727227845923,-2207.09904118,0.000129,2]
[339087643,1727227845934,-3724.40991871,0.000129,2]
[339087644,1727227845947,-50311.46022936,0.000129,2]
[339087645,1727227845991,-184.60502871,0.00012898,2]
[339087646,1727227846001,-331.67497129,0.000129,2]
[339087647,1727227846013,-297.14999982,0.000129,2]
[339087683,1727227883370,312.67,0.00010027,2]
[339087684,1727227891722,1050.0,0.00011,2]
[339087687,1727228318603,169.73,0.00010959,2]
[339087688,1727228578237,311.94,9.883e-05,2]
[339087690,1727228838796,510.0,0.00021917,120]
[339087707,1727229020235,155.37,0.00010959,2]
[339087718,1727229031824,-202.04108184,0.00011489,2]
[339087719,1727229031834,-249.2,0.00011581,2]
[339087720,1727229031843,-150.0,0.00011589,2]
[339087721,1727229031854,-245.51620902,0.00011589,2]
[339087722,1727229031863,-287.77355455,0.00011589,2]
[339087723,1727229031872,-196.81275323,0.00011589,2]
[339087724,1727229031881,-150.0,0.00011599,2]
[339087725,1727229031890,-177.69,0.0001163,2]
[339087726,1727229031899,-250.0,0.00011633,2]
[339087727,1727229031908,-155.46367678,0.00011634,2]
[339087728,1727229031917,-200.0,0.00011654,2]
[339087729,1727229031928,-250.0,0.00011681,2]
[339087730,1727229031939,-158.11,0.00011683,2]
[339087731,1727229031948,-423.26,0.00011708,2]
[339087732,1727229031957,-499.99,0.00011708,2]
[339087733,1727229031968,-300.0,0.00011734,2]
[339087734,1727229031978,-300.0,0.00011735,2]
[339087735,1727229031988,-5195.98,0.00011736,2]
[339087736,1727229031997,-1528.26,0.00011736,2]
[339087737,1727229032006,-258.15,0.00011764,2]
[339087738,1727229032016,-4056.16,0.00011769,2]
[339087739,1727229032026,-486.07,0.00011841,2]
[339087740,1727229032035,-1000.0,0.00011847,2]
[339087741,1727229032045,-250.0,0.00011851,2]
[339087742,1727229032055,-247.61,0.00011855,2]
[339087743,1727229032066,-311.94,0.00012147,2]
[339087744,1727229032075,-178.518639,0.00012197,2]
[339087745,1727229032084,-288.36389395,0.000127,2]
[339087746,1727229032094,-304.11183136,0.000127,2]
[339087747,1727229032104,-261.1668,0.000127,2]
[339087748,1727229032114,-150.0,0.00012753,2]
[339087749,1727229032123,-150.0,0.00012772,2]
[339087750,1727229032132,-1535.37818055,0.0001278,2]
[339087751,1727229032141,-180.1371,0.00012799,2]
[339087752,1727229032151,-919.5074,0.00012799,2]
[339087753,1727229032160,-150.0,0.00012799,2]
[339087754,1727229032169,-5108.70675206,0.00012799,2]
[339087755,1727229032178,-4338.65549325,0.00012799,2]
[339087756,1727229032191,-766.82782064,0.00012799,2]
[339087757,1727229032202,-3.22343816,0.00012799,2]
[339087758,1727229032211,-5108.70675205,0.00012799,2]
[339087759,1727229032221,-2571.79484862,0.00012799,2]
[339087760,1727229032233,-2428.66709566,0.00012799,2]
[339087761,1727229032244,-108.24480777,0.00012799,2]
[339087762,1727229032254,-5108.70675205,0.00012799,2]
[339087763,1727229032263,-5108.70675205,0.000128,2]
[339087764,1727229032272,-594.24845868,0.000128,2]
[339087765,1727229032283,-312.84406266,0.000128,2]
[339087766,1727229032302,-4201.61423071,0.000128,2]
[339087767,1727229032311,-4412.4132,0.000128,2]
[339087768,1727229032320,-3356.97843443,0.000128,2]
[339087769,1727229032332,-8250.45256557,0.000128,2]
[339087770,1727229032341,-431.6043,0.000128,2]
[339087771,1727229032350,-5108.70675205,0.000128,2]
[339087772,1727229032360,-5108.70675205,0.000128,2]
[339087773,1727229032370,-169.3504,0.000128,2]
[339087774,1727229032379,-166.02661025,0.000128,2]
[339087775,1727229032389,-169.24490255,0.000128,2]
[339087776,1727229032398,-191.2062348,0.000128,2]
[339087777,1727229032407,-150.77980661,0.000128,2]
[339087778,1727229032417,-150.77980661,0.000128,2]
[339087779,1727229032426,-150.77980661,0.000128,2]
[339087780,1727229032435,-150.77980661,0.000128,2]
[339087781,1727229032444,-150.77980661,0.000128,2]
[339087782,1727229032453,-151.27,0.000128,2]
[339087783,1727229032464,-5108.70675205,0.000128,2]
[339087784,1727229032473,-327.52562414,0.000128,2]
[339087785,1727229032483,-327.52562414,0.000128,2]
[339087786,1727229032494,-327.52562414,0.000128,2]
[339087787,1727229032503,-327.52562414,0.000128,2]
[339087788,1727229032514,-327.52562414,0.000128,2]
[339087789,1727229032524,-327.52562414,0.000128,2]
[339087790,1727229032534,-327.52562414,0.000128,2]
[339087791,1727229032544,-327.52562414,0.000128,2]
[339087792,1727229032554,-327.52562414,0.000128,2]
[339087793,1727229032562,-327.52562414,0.000128,2]
[339087794,1727229032572,-327.52562414,0.000128,2]
[339087795,1727229032582,-327.52562414,0.000128,2]
[339087796,1727229032591,-327.52562414,0.000128,2]
[339087797,1727229032600,-327.52562414,0.000128,2]
[339087798,1727229032609,-327.52562414,0.000128,2]
[339087799,1727229032785,-327.52562414,0.000128,2]
[339087800,1727229032802,-327.52562414,0.000128,2]
[339087801,1727229032812,-327.52562414,0.000128,2]
[339087802,1727229032821,-327.52562414,0.000128,2]
[339087803,1727229032830,-328.02,0.000128,2]
[339087804,1727229032839,-321.71561092,0.000128,2]
[339087805,1727229032848,-321.71561092,0.000128,2]
[339087806,1727229032858,-321.71561092,0.000128,2]
[339087807,1727229032867,-321.71561092,0.000128,2]
[339087808,1727229032877,-321.71561092,0.000128,2]
[339087809,1727229032886,-321.71561092,0.000128,2]
[339087810,1727229032895,-321.71561092,0.000128,2]
[339087811,1727229032906,-321.71561092,0.000128,2]
[339087812,1727229032917,-321.71561092,0.000128,2]
[339087813,1727229032927,-321.71561092,0.000128,2]
[339087814,1727229032937,-321.71561092,0.000128,2]
[339087815,1727229032946,-321.71561092,0.000128,2]
[339087816,1727229032955,-321.71561092,0.000128,2]
[339087817,1727229032965,-321.71561092,0.000128,2]
[339087818,1727229032975,-321.71561092,0.000128,2]
[339087819,1727229032987,-321.71561092,0.000128,2]
[339087820,1727229032996,-321.71561092,0.000128,2]
[339087821,1727229033007,-321.71561092,0.000128,2]
[339087822,1727229033016,-321.71561092,0.000128,2]
[339087823,1727229033025,-322.21,0.000128,2]
[339087824,1727229033034,-150.0,0.00012803,2]
[339087825,1727229033044,-150.0,0.00012804,2]
[339087826,1727229033053,-178.518639,0.00012807,2]
[339087827,1727229033063,-150.0,0.00012816,2]
[339087828,1727229033072,-155.0,0.0001284,2]
[339087829,1727229033081,-150.0,0.00012857,2]
[339087830,1727229033090,-405.556,0.00012863,2]
[339087831,1727229033099,-175.93201376,0.00012863,2]
[339087832,1727229033108,-275.65606353,0.00012873,2]
[339087833,1727229033118,-500.0,0.00012873,2]
[339087834,1727229033127,-503.47099608,0.00012873,2]
[339087835,1727229033137,-157.94662144,0.00012877,2]
[339087836,1727229033147,-150.0,0.00012881,2]
[339087837,1727229033156,-150.0,0.00012882,2]
[339087838,1727229033166,-420.0,0.00012886,2]
[339087839,1727229033175,-1556.392,0.00012887,2]
[339087840,1727229033185,-1268.44,0.00012887,2]
[339087841,1727229033194,-450.326,0.00012887,2]
[339087842,1727229033204,-628.24,0.00012887,2]
[339087843,1727229033213,-934.312,0.00012887,2]
[339087844,1727229033223,-559.446,0.00012887,2]
[339087845,1727229033232,-811.137,0.00012887,2]
[339087846,1727229033242,-554.415,0.00012887,2]
[339087847,1727229033251,-1907.814,0.00012887,2]
[339087848,1727229033261,-1917.867,0.00012887,2]
[339087849,1727229033270,-3354.518,0.00012887,2]
[339087850,1727229033279,-260.79,0.00012887,2]
[339087851,1727229033288,-808.0,0.00012887,2]
[339087852,1727229033298,-151.501,0.00012887,2]
[339087853,1727229033307,-12463.839,0.00012887,2]
[339087854,1727229033316,-1152.924,0.00012887,2]
[339087855,1727229033325,-5895.967,0.00012887,2]
[339087856,1727229033335,-1082.813,0.00012887,2]
[339087857,1727229033344,-166.83301955,0.00012889,2]
[339087858,1727229033354,-158.55,0.0001289,2]
[339087859,1727229033371,-158.55,0.0001289,2]
[339087860,1727229033381,-174.77869922,0.0001289,2]
[339087861,1727229033391,-500.0,0.00012898,2]
[339087862,1727229033401,-500.0,0.00012898,2]
[339087863,1727229033410,-345.59486291,0.00012898,2]
[339087864,1727229033423,-2369.75986596,0.00012898,2]
[339087865,1727229033432,-155.88941494,0.00012898,2]
[339087866,1727229033442,-194.38326239,0.00012898,2]
[339087867,1727229033451,-1000.0,0.00012898,2]
[339087868,1727229033462,-1000.0,0.00012898,2]
[339087869,1727229033472,-1000.0,0.00012898,2]
[339087870,1727229033481,-1000.0,0.00012898,2]
[339087871,1727229033492,-1000.0,0.00012898,2]
[339087872,1727229033501,-990.0,0.00012898,2]
[339087873,1727229033510,-1000.0,0.00012899,2]
[339087874,1727229033519,-1000.0,0.00012899,2]
[339087875,1727229033529,-1000.0,0.00012899,2]
[339087876,1727229033539,-1000.0,0.00012899,2]
[339087877,1727229033548,-1000.0,0.00012899,2]
[339087878,1727229033558,-1000.0,0.00012899,2]
[339087879,1727229033568,-1000.0,0.00012899,2]
[339087880,1727229033577,-1000.0,0.00012899,2]
[339087881,1727229033587,-1000.0,0.00012899,2]
[339087882,1727229033596,-1000.0,0.00012899,2]
[339087883,1727229033606,-1000.0,0.00012899,2]
[339087884,1727229033615,-1000.0,0.00012899,2]
[339087885,1727229033624,-1000.0,0.00012899,2]
[339087886,1727229033633,-1000.0,0.00012899,2]
[339087887,1727229033643,-1000.0,0.00012899,2]
[339087888,1727229033652,-1000.0,0.00012899,2]
[339087889,1727229033666,-1000.0,0.00012899,2]
[339087890,1727229033675,-1000.0,0.00012899,2]
[339087891,1727229033684,-1000.0,0.00012899,2]
[339087892,1727229033693,-1000.0,0.00012899,2]
[339087893,1727229033703,-1000.0,0.00012899,2]
[339087894,1727229033712,-1000.0,0.00012899,2]
[339087895,1727229033721,-1000.0,0.00012899,2]
[339087896,1727229033730,-1000.0,0.00012899,2]
[339087897,1727229033739,-1000.0,0.00012899,2]
[339087898,1727229033750,-1000.0,0.00012899,2]
[339087899,1727229033760,-1000.0,0.00012899,2]
[339087900,1727229033769,-1000.0,0.00012899,2]
[339087901,1727229033778,-1014.0,0.00012899,2]
[339087902,1727229033787,-392.52625537,0.00012899,2]
[339087903,1727229033796,-501.17066642,0.00012899,2]
[339087904,1727229033806,-500.0,0.00012899,2]
[339087905,1727229033815,-2004.37233579,0.00012899,2]
[339087906,1727229033824,-500.0,0.00012899,2]
[339087907,1727229033833,-500.0,0.00012899,2]
[339087908,1727229033844,-500.0,0.00012899,2]
[339087909,1727229033853,-500.0,0.00012899,2]
[339087910,1727229033862,-500.0,0.00012899,2]
[339087911,1727229033887,-500.0,0.00012899,2]
[339087912,1727229033896,-500.0,0.00012899,2]
[339087913,1727229033906,-500.0,0.00012899,2]
[339087914,1727229033916,-500.0,0.00012899,2]
[339087915,1727229033928,-500.0,0.00012899,2]
[339087916,1727229033938,-500.0,0.00012899,2]
[339087917,1727229033948,-500.0,0.00012899,2]
[339087918,1727229033957,-500.0,0.00012899,2]
[339087919,1727229033966,-500.0,0.00012899,2]
[339087920,1727229033976,-500.0,0.00012899,2]
[339087921,1727229033986,-500.0,0.00012899,2]
[339087922,1727229033995,-500.0,0.00012899,2]
[339087923,1727229034005,-500.0,0.00012899,2]
[339087924,1727229034014,-500.0,0.00012899,2]
[339087925,1727229034024,-500.0,0.00012899,2]
[339087926,1727229034034,-500.0,0.00012899,2]
[339087927,1727229034044,-500.0,0.00012899,2]
[339087928,1727229034053,-500.0,0.00012899,2]
[339087929,1727229034063,-212.57880665,0.00012899,2]
[339087930,1727229034073,-500.0,0.00012899,2]
[339087931,1727229034082,-214.73383442,0.00012899,2]
[339087932,1727229034092,-163.98039514,0.00012899,2]
[339087933,1727229034102,-500.0,0.00012899,2]
[339087934,1727229034112,-194.6465398,0.00012899,2]
[339087935,1727229034122,-407.7375,0.00012899,2]
[339087936,1727229034132,-178.4199037,0.00012899,2]
[339087937,1727229034142,-528.14079713,0.00012899,2]
[339087938,1727229034152,-202.42159825,0.00012899,2]
[339087939,1727229034162,-230.09402386,0.00012899,2]
[339087940,1727229034172,-378.07240705,0.00012899,2]
[339087941,1727229034182,-157.08122269,0.00012899,2]
[339087942,1727229034191,-254.91659745,0.00012899,2]
[339087943,1727229034200,-234.76589264,0.00012899,2]
[339087944,1727229034209,-394.32224677,0.00012899,2]
[339087945,1727229034219,-385.42463339,0.00012899,2]
[339087946,1727229034229,-500.0,0.00012899,2]
[339087947,1727229034238,-500.0,0.00012899,2]
[339087948,1727229034248,-187.1992,0.00012899,2]
[339087949,1727229034258,-154.31278583,0.00012899,2]
[339087950,1727229034267,-161.25147815,0.00012899,2]
[339087951,1727229034277,-169.43231271,0.00012899,2]
[339087952,1727229034286,-188.39273664,0.00012899,2]
[339087953,1727229034297,-376.94351752,0.00012899,2]
[339087954,1727229034306,-500.0,0.00012899,2]
[339087955,1727229034317,-328.66193816,0.00012899,2]
[339087956,1727229034326,-105384.25214722,0.000129,2]
[339087957,1727229034340,-14097.59991576,0.000129,2]
[339087958,1727229034352,-1575.80108066,0.000129,2]
[339087959,1727229034364,-464.31786717,0.000129,2]
[339087960,1727229034375,-18013.12000341,0.000129,2]
[339087961,1727229034384,-2001.82,0.000129,2]
[339087962,1727229034394,-171782.54789328,0.000129,2]
[339087963,1727229034413,-45929.48712503,0.000129,2]
[339087964,1727229034425,-892.45444362,0.000129,2]
[339087965,1727229034436,-4630.33771071,0.000129,2]
[339087966,1727229034453,-10977.721407,0.000129,2]
[339087967,1727229034464,-697387.31866675,0.000129,2]
[339087968,1727229034475,-10733.94669841,0.000129,2]
[339087969,1727229034487,-1446.52809512,0.000129,2]
[339087970,1727229034499,-637.06237079,0.000129,2]
[339087971,1727229034510,-883.54995,0.000129,2]
[339087972,1727229034522,-846.47,0.000129,2]
[339087973,1727229034534,-350.2299999,0.000129,2]
[339087974,1727229034545,-11506.71936319,0.000129,2]
[339087975,1727229034557,-3201.75970489,0.000129,2]
[339087976,1727229038079,-512.8,0.00011972,2]
[339087977,1727229038088,-616.90645197,0.00012899,2]
[339087978,1727229038097,-500.50564645,0.00012899,2]
[339087979,1727229038107,-517.80204851,0.00012899,2]
[339087980,1727229038116,-503.10149706,0.00012899,2]
[339087981,1727229038126,-501.75087238,0.00012899,2]
[339087982,1727229038136,-500.0,0.00012899,2]
[339087983,1727229038146,-500.0,0.00012899,2]
[339087984,1727229038155,-500.0,0.00012899,2]
[339087985,1727229038164,-333.59407935,0.00012899,2]
[339087986,1727229038174,-500.0,0.00012899,2]
[339087987,1727229038183,-500.0,0.00012899,2]
[339087988,1727229038193,-500.0,0.00012899,2]
[339087989,1727229038202,-20959.61986208,0.000129,2]
[339087990,1727229038213,-532.40607114,0.000129,2]
[339087991,1727229038224,-4469.20141,0.000129,2]
[339087992,1727229038235,-568129.43205573,0.000129,2]
[339087993,1727229038474,-300.96476583,0.00012899,2]
[339087994,1727229038483,-2934.78523417,0.000129,2]
[339087995,1727229038495,-6903.18681663,0.000129,2]
[339087996,1727229038506,-461.545,0.000129,2]
[339087997,1727229038517,-289.16237873,0.000129,2]
[339088014,1727229039902,-500.0,0.00012899,2]
[339088015,1727229039912,-282.34111714,0.00012899,2]
[339088016,1727229039921,-2774.00085856,0.000129,2]
[339088017,1727229040018,-3372.01918092,0.000129,2]
[339088018,1727229040031,-14331.42910504,0.000129,2]
[339088019,1727229040043,-400.07483383,0.000129,2]
[339088020,1727229040054,-745.83403878,0.000129,2]
[339088021,1727229040065,-5464.19112739,0.000129,2]
[339088022,1727229040076,-1024.59572777,0.000129,2]
[339088086,1727229042915,-500.0,0.00012899,2]
[339088087,1727229042924,-500.0,0.00012899,2]
[339088088,1727229042933,-172.97699774,0.00012899,2]
[339088089,1727229042942,-500.0,0.00012899,2]
[339088090,1727229042951,-625.42986055,0.00012899,2]
[339088091,1727229042960,-10680.8684811,0.000129,2]
[339088092,1727229043011,-1309.9999992,0.000129,2]
[339088093,1727229043023,-5693.25,0.000129,2]
[339088094,1727229043110,-7697.19853001,0.000129,2]
[339088095,1727229043121,-5161.16,0.000129,2]
[339088096,1727229043133,-4354.91433513,0.000129,2]
[339088100,1727229045923,-500.0,0.00012899,2]
[339088101,1727229045932,-603.44380768,0.00012899,2]
[339088102,1727229045942,-90.82865232,0.00012899,2]
[339088103,1727229045953,-517.18343028,0.00012899,2]
[339088104,1727229045963,-520.82795301,0.00012899,2]